[Event "Fagernes Chess GM-Swiss 2024"]
[Site "Fagernes"]
[Date "2024.03.29"]
[Round "7.20"]
[White "Moksh Amit Doshi"]
[Black "Andersen, Morten"]
[Result "1-0"]
[ECO "A06"]
[WhiteElo "2353"]
[BlackElo "2178"]
[Annotator "RC"]
[PlyCount "77"]
[EventDate "2024.03.25"]
[EventType "swiss"]
[EventCountry "NOR"]
[SourceTitle "playchess.com"]
[Source "ChessBase"]
[SourceQuality "1"]
[TimeControl "40/6000+30:2400+30"]

1. Nf3 {[%emt 0:03:57]} d5 {[%emt 0:01:51]} 2. e3 {[%emt 0:00:08]} Nf6 {[%emt 0:00:57]} 3. c4 {[%emt 0:00:08]} g6 {[%emt 0:05:21]} 4. Nc3 {[%emt 0:03:34]} Bg7 {[%emt 0:02:36]} 5. cxd5 {[%emt 0:03:05]} Nxd5 {[%emt 0:00:28]} 6. h4 {[%emt 0:00:10]} c5 {[%emt 0:13:33]} 7. h5 {[%emt 0:00:59]} Nb4 {[%emt 0:08:53]} 8. d3 {[%emt 0:07:31]} Bg4 {[%emt 0:10:32]} 9. h6 {[%emt 0:02:32]} Be5 {[%emt 0:02:02]} 10. a3 {[%emt 0:07:53]} Bxf3 {[%emt 0:05:22]} 11. gxf3 {[%emt 0:00:14]} Nd5 {[%emt 0:02:05]} 12. Ne4 {[%emt 0:01:29]} O-O {[%emt 0:00:50]} 13. f4 {[%emt 0:01:53]} Bh8 {[%emt 0:00:30]} 14. f5 {[%emt 0:02:08]} Qb6 {[%emt 0:03:23]} 15. Qc2 {[%emt 0:03:00]} Nd7 {[%emt 0:04:11]} 16. fxg6 {[%emt 0:03:28]} fxg6 {[%emt 0:03:11]} 17. Bh3 {[%emt 0:00:23]} e6 {[%emt 0:02:03]} 18. Bd2 {[%emt 0:05:50]} Ne5 {[%emt 0:04:15]} 19. Ke2 {[%emt 0:04:38]} Rac8 {[%emt 0:06:17]} 20. f4 {[%emt 0:10:38]} Nf7 {[%emt 0:01:22]} 21. Bg4 {[%emt 0:02:34]} Rc6 {[%emt 0:05:15]} 22. Rac1 {[%emt 0:01:33]} Qxb2 {[%emt 0:03:35]} 23. Qxb2 {[%emt 0:02:00]} Bxb2 {[%emt 0:01:14]} 24. Rxc5 {[%emt 0:00:05]} Nd8 {[%emt 0:03:56]} 25. Rxc6 {[%emt 0:01:32]} bxc6 {[%emt 0:00:06]} 26. Rb1 {[%emt 0:04:16]} Bxa3 {[%emt 0:00:45]} 27. Ra1 {[%emt 0:00:07]} Bb2 {[%emt 0:02:42]} 28. Rxa7 {[%emt 0:00:11]} Nf6 {[%emt 0:00:58]} 29. Nxf6+ {[%emt 0:03:58]} Bxf6 {[%emt 0:00:09]} 30. Bb4 {[%emt 0:00:32]} Re8 {[%emt 0:00:43]} 31. e4 {[%emt 0:01:07]} Nf7 {[%emt 0:01:32]} 32. e5 {[%emt 0:00:41]} Bh4 {[%emt 0:00:59]} 33. Bf3 {[%emt 0:01:57]} c5 {[%emt 0:04:02]} 34. Bxc5 {[%emt 0:01:30]} Nxh6 {[%emt 0:00:07]} 35. d4 {[%emt 0:00:56]} Rd8 {[%emt 0:03:12]} 36. Bc6 {[%emt 0:02:06]} Nf5 {[%emt 0:00:35]} 37. Bd7 {[%emt 0:00:09]} Kf7 {[%emt 0:02:42]} 38. d5 {[%emt 0:00:55]} exd5 {[%emt 0:01:30]} 39. Bxf5+ {[%emt 0:00:07]} 1-0

[Event "Fagernes Chess GM-Swiss 2024"]
[Site "Fagernes"]
[Date "2024.03.29"]
[Round "7.21"]
[White "Nielsen, Viktor Haarmark"]
[Black "Aamodt, Peder Marcus"]
[Result "1-0"]
[ECO "E04"]
[WhiteElo "2351"]
[BlackElo "1941"]
[Annotator "RC"]
[PlyCount "97"]
[EventDate "2024.03.25"]
[EventType "swiss"]
[EventCountry "NOR"]
[SourceTitle "playchess.com"]
[Source "ChessBase"]
[SourceQuality "1"]
[TimeControl "40/6000+30:2400+30"]

1. d4 {[%emt 0:00:02]} d5 {[%emt 0:10:19]} 2. c4 {[%emt 0:00:07]} e6 {[%emt 0:00:11]} 3. Nf3 {[%emt 0:00:08]} Nf6 {[%emt 0:00:09]} 4. g3 {[%emt 0:00:04]} dxc4 {[%emt 0:00:45]} 5. Bg2 {[%emt 0:00:07]} a6 {[%emt 0:00:15]} 6. O-O {[%emt 0:00:36]} Nc6 {[%emt 0:00:49]} 7. Nbd2 {[%emt 0:00:05]} b5 {[%emt 0:15:25]} 8. b3 {[%emt 0:03:41]} Rb8 {[%emt 0:04:34]} 9. bxc4 {[%emt 0:06:30]} Nxd4 {[%emt 0:10:02]} 10. Nxd4 {[%emt 0:13:06]} Qxd4 {[%emt 0:00:20]} 11. Rb1 {[%emt 0:00:10]} Be7 {[%emt 0:07:37]} 12. Qc2 {[%emt 0:00:45]} O-O {[%emt 0:01:29]} 13. cxb5 {[%emt 0:08:52]} axb5 {[%emt 0:06:49]} 14. Qxc7 {[%emt 0:04:04]} Qd6 {[%emt 0:02:35]} 15. Qxd6 {[%emt 0:12:44]} Bxd6 {[%emt 0:02:41]} 16. Rd1 {[%emt 0:00:06]} Be7 {[%emt 0:04:05]} 17. Bb2 {[%emt 0:03:22]} b4 {[%emt 0:07:50]} 18. Nb3 {[%emt 0:05:07]} Bb7 {[%emt 0:03:23]} 19. Na5 {[%emt 0:04:28]} Bxg2 {[%emt 0:03:07]} 20. Kxg2 {[%emt 0:00:02]} Rfc8 {[%emt 0:00:55]} 21. Rbc1 {[%emt 0:01:31]} Rxc1 {[%emt 0:01:46]} 22. Rxc1 {[%emt 0:00:11]} h6 {[%emt 0:10:34]} 23. Nc6 {[%emt 0:02:01]} Rb7 {[%emt 0:00:07]} 24. Be5 {[%emt 0:03:22]} Bf8 {[%emt 0:02:28]} 25. Nd8 {[%emt 0:08:39]} Rb5 {[%emt 0:04:53]} 26. f4 {[%emt 0:05:21]} Nd7 {[%emt 0:01:39]} 27. Bd4 {[%emt 0:02:25]} Rd5 {[%emt 0:02:07]} 28. Nc6 {[%emt 0:01:38]} Nb8 {[%emt 0:00:56]} 29. Nxb8 {[%emt 0:06:16]} Rxd4 {[%emt 0:00:07]} 30. Rc2 {[%emt 0:00:07]} g5 {[%emt 0:04:30]} 31. Nc6 {[%emt 0:00:31]} Rd5 {[%emt 0:00:29]} 32. Ne5 {[%emt 0:00:53]} gxf4 {[%emt 0:00:49]} 33. gxf4 {[%emt 0:00:06]} Rb5 {[%emt 0:00:46]} 34. Rc8 {[%emt 0:06:18]} Kg7 {[%emt 0:01:19]} 35. Rc7 {[%emt 0:03:28]} Ra5 {[%emt 0:01:01]} 36. Rxf7+ {[%emt 0:02:15]} Kg8 {[%emt 0:00:01]} 37. Rb7 {[%emt 0:00:17]} Rxa2 {[%emt 0:00:15]} 38. Kf3 {[%emt 0:00:09]} Rb2 {[%emt 0:01:52]} 39. Nc6 {[%emt 0:05:45]} Rb1 {[%emt 0:00:18]} 40. Nd4 {[%emt 0:00:29]} Rf1+ {[%emt 0:00:32]} 41. Ke4 {[%emt 0:40:56]} Re1 {[%emt 0:04:55]} 42. e3 {[%emt 0:00:00]} Bc5 {[%emt 0:00:59]} 43. Nxe6 {[%emt 0:00:00]} Bxe3 {[%emt 0:03:54]} 44. Kf5 {[%emt 0:00:00]} Bd2 {[%emt 0:20:57]} 45. Kf6 {[%emt 0:00:00]} Bc3+ {[%emt 0:02:50]} 46. Ke7 {[%emt 0:00:00]} h5 {[%emt 0:08:52]} 47. h4 {[%emt 0:00:00]} Kh7 {[%emt 0:00:51]} 48. Kf7 {[%emt 0:00:00]} Rf1 {[%emt 0:00:47]} 49. Ng5+ {[%emt 0:00:00]} 1-0

[Event "Fagernes Chess GM-Swiss 2024"]
[Site "Fagernes"]
[Date "2024.03.29"]
[Round "7.22"]
[White "Melaa, Sondre"]
[Black "Mihajlov, Sebastian"]
[Result "1-0"]
[ECO "C55"]
[WhiteElo "2285"]
[BlackElo "2373"]
[Annotator "RC"]
[PlyCount "165"]
[EventDate "2024.03.25"]
[EventType "swiss"]
[EventCountry "NOR"]
[SourceTitle "playchess.com"]
[Source "ChessBase"]
[SourceQuality "1"]
[TimeControl "40/6000+30:2400+30"]

1. e4 {[%emt 0:11:14]} e5 {[%emt 0:00:53]} 2. Nf3 {[%emt 0:00:15]} Nc6 {[%emt 0:00:06]} 3. Bc4 {[%emt 0:00:21]} Nf6 {[%emt 0:02:03]} 4. d3 {[%emt 0:00:10]} h6 {[%emt 0:01:05]} 5. O-O {[%emt 0:00:34]} d6 {[%emt 0:00:06]} 6. a4 {[%emt 0:00:23]} g6 {[%emt 0:00:46]} 7. Nc3 {[%emt 0:00:32]} Bg7 {[%emt 0:00:33]} 8. Re1 {[%emt 0:04:54]} O-O {[%emt 0:03:14]} 9. a5 {[%emt 0:00:39]} a6 {[%emt 0:00:05]} 10. Nd5 {[%emt 0:05:34]} Nxd5 {[%emt 0:10:13]} 11. Bxd5 {[%emt 0:16:31]} Nxa5 {[%emt 0:05:04]} 12. Rxa5 {[%emt 0:04:14]} c6 {[%emt 0:00:19]} 13. Bd2 {[%emt 0:00:43]} cxd5 {[%emt 0:00:06]} 14. exd5 {[%emt 0:00:09]} g5 {[%emt 0:22:31]} 15. h3 {[%emt 0:08:43]} g4 {[%emt 0:18:19]} 16. Nh2 {[%emt 0:00:13]} gxh3 {[%emt 0:00:49]} 17. Qh5 {[%emt 0:00:13]} Qf6 {[%emt 0:01:35]} 18. gxh3 {[%emt 0:04:56]} Qg6+ {[%emt 0:01:01]} 19. Qxg6 {[%emt 0:00:10]} fxg6 {[%emt 0:00:02]} 20. Kg2 {[%emt 0:00:39]} g5 {[%emt 0:11:14]} 21. Bb4 {[%emt 0:05:25]} b6 {[%emt 0:05:11]} 22. Raa1 {[%emt 0:05:30]} Rd8 {[%emt 0:03:48]} 23. Ng4 {[%emt 0:04:49]} a5 {[%emt 0:00:24]} 24. Bd2 {[%emt 0:01:54]} Bf5 {[%emt 0:01:41]} 25. Ne3 {[%emt 0:02:35]} Bg6 {[%emt 0:00:05]} 26. Nc4 {[%emt 0:00:50]} Bf7 {[%emt 0:04:11]} 27. Nxb6 {[%emt 0:11:47]} Ra6 {[%emt 0:00:26]} 28. Bxa5 {[%emt 0:01:26]} Rb8 {[%emt 0:00:09]} 29. c4 {[%emt 0:00:59]} e4 {[%emt 0:03:23]} 30. dxe4 {[%emt 0:06:18]} Bxb2 {[%emt 0:01:34]} 31. Ra2 {[%emt 0:06:50]} Rbxb6 {[%emt 0:01:21]} 32. Bxb6 {[%emt 0:00:12]} Rxa2 {[%emt 0:06:10]} 33. Re2 {[%emt 0:00:07]} Bh5 {[%emt 0:00:03]} 34. Rd2 {[%emt 0:01:27]} Kf8 {[%emt 0:01:49]} 35. c5 {[%emt 0:02:57]} dxc5 {[%emt 0:00:10]} 36. Bxc5+ {[%emt 0:00:20]} Ke8 {[%emt 0:00:06]} 37. Bb4 {[%emt 0:00:29]} Bg6 {[%emt 0:01:36]} 38. f3 {[%emt 0:00:42]} Bf7 {[%emt 0:01:51]} 39. h4 {[%emt 0:01:51]} Kd7 {[%emt 0:03:36]} 40. e5 {[%emt 0:01:30]} Bxe5 {[%emt 0:01:55]} 41. Rxa2 {[%emt 0:40:09]} Bxd5 {[%emt 0:40:02]} 42. Ra5 {[%emt 0:00:00]} Ke6 {[%emt 0:00:00]} 43. Ra6+ {[%emt 0:00:00]} Kf5 {[%emt 0:00:00]} 44. Ra5 {[%emt 0:00:00]} Ke6 {[%emt 0:00:00]} 45. Kf2 {[%emt 0:00:00]} Bd4+ {[%emt 0:00:00]} 46. Ke2 {[%emt 0:00:00]} Bc4+ {[%emt 0:00:00]} 47. Ke1 {[%emt 0:00:00]} gxh4 {[%emt 0:00:00]} 48. Rh5 {[%emt 0:00:00]} Bf6 {[%emt 0:00:00]} 49. Rxh6 {[%emt 0:00:00]} Kf5 {[%emt 0:00:00]} 50. Bd2 {[%emt 0:00:00]} Bf7 {[%emt 0:00:00]} 51. Kf1 {[%emt 0:00:00]} Bg6 {[%emt 0:00:00]} 52. Be1 {[%emt 0:00:00]} Bg5 {[%emt 0:00:00]} 53. Rh8 {[%emt 0:00:00]} Bf6 {[%emt 0:00:00]} 54. Rf8 {[%emt 0:00:00]} Ke6 {[%emt 0:00:00]} 55. Kg2 {[%emt 0:00:00]} Bf5 {[%emt 0:00:00]} 56. Ra8 {[%emt 0:00:00]} Kf7 {[%emt 0:00:00]} 57. Ra4 {[%emt 0:00:00]} h3+ {[%emt 0:00:00]} 58. Kh2 {[%emt 0:00:00]} Kg6 {[%emt 0:00:00]} 59. Bg3 {[%emt 0:00:00]} Kf7 {[%emt 0:00:00]} 60. Bf4 {[%emt 0:00:00]} Kg6 {[%emt 0:00:00]} 61. Kg3 {[%emt 0:00:00]} Kf7 {[%emt 0:00:00]} 62. Ra5 {[%emt 0:00:00]} Ke6 {[%emt 0:00:00]} 63. Rb5 {[%emt 0:00:00]} Bd4 {[%emt 0:00:00]} 64. Ra5 {[%emt 0:00:00]} Bf6 {[%emt 0:00:00]} 65. Ra6+ {[%emt 0:00:00]} Kf7 {[%emt 0:00:00]} 66. Ra4 {[%emt 0:01:34]} Kg6 {[%emt 0:00:00]} 67. Kf2 {[%emt 0:00:38]} Bd7 {[%emt 0:00:00]} 68. Ra6 {[%emt 0:02:16]} Kf7 {[%emt 0:00:00]} 69. Ke3 {[%emt 0:00:52]} Bf5 {[%emt 0:00:00]} 70. Bg3 {[%emt 0:01:10]} Bg5+ {[%emt 0:00:00]} 71. Kd4 {[%emt 0:00:14]} Bf6+ {[%emt 0:00:00]} 72. Kd5 {[%emt 0:00:18]} Bd3 {[%emt 0:00:00]} 73. Rc6 {[%emt 0:03:07]} Bb5 {[%emt 0:00:00]} 74. Rc7+ {[%emt 0:01:28]} Kg6 {[%emt 0:00:00]} 75. Ke4 {[%emt 0:02:11]} Bf1 {[%emt 0:00:00]} 76. Kf4 {[%emt 0:00:34]} Bd3 {[%emt 0:00:00]} 77. Rc6 {[%emt 0:00:45]} Bf5 {[%emt 0:00:00]} 78. Bh2 {[%emt 0:02:41]} Bd7 {[%emt 0:00:00]} 79. Rd6 {[%emt 0:00:12]} Bf5 {[%emt 0:00:10]} 80. Bg1 {[%emt 0:00:51]} Bc8 {[%emt 0:01:21]} 81. Bd4 {[%emt 0:01:10]} h2 {[%emt 0:00:09]} 82. Rxf6+ {[%emt 0:00:07]} Kh7 {[%emt 0:00:06]} 83. Rf8 {[%emt 0:00:14]} 1-0

[Event "Fagernes Chess GM-Swiss 2024"]
[Site "Fagernes"]
[Date "2024.03.29"]
[Round "7.23"]
[White "Kenneskog, Theodor"]
[Black "Daakshin Arun"]
[Result "1/2-1/2"]
[ECO "B90"]
[WhiteElo "2358"]
[BlackElo "2283"]
[Annotator "RC"]
[PlyCount "38"]
[EventDate "2024.03.25"]
[EventType "swiss"]
[EventCountry "NOR"]
[SourceTitle "playchess.com"]
[Source "ChessBase"]
[SourceQuality "1"]
[TimeControl "40/6000+30:2400+30"]

1. e4 {[%emt 0:00:04]} c5 {[%emt 0:00:06]} 2. Nf3 {[%emt 0:00:13]} d6 {[%emt 0:00:06]} 3. d4 {[%emt 0:00:12]} cxd4 {[%emt 0:00:06]} 4. Nxd4 {[%emt 0:00:05]} Nf6 {[%emt 0:00:06]} 5. Nc3 {[%emt 0:00:05]} a6 {[%emt 0:00:11]} 6. Be3 {[%emt 0:00:29]} e5 {[%emt 0:00:09]} 7. Nb3 {[%emt 0:00:12]} Be6 {[%emt 0:00:05]} 8. f3 {[%emt 0:00:12]} h5 {[%emt 0:00:05]} 9. Nd5 {[%emt 0:01:37]} Bxd5 {[%emt 0:00:06]} 10. exd5 {[%emt 0:00:03]} Nbd7 {[%emt 0:00:05]} 11. Qd2 {[%emt 0:00:57]} g6 {[%emt 0:00:23]} 12. O-O-O {[%emt 0:00:26]} Nb6 {[%emt 0:00:36]} 13. Kb1 {[%emt 0:00:05]} Nbxd5 {[%emt 0:00:12]} 14. Bg5 {[%emt 0:00:31]} Be7 {[%emt 0:01:31]} 15. Bd3 {[%emt 0:00:39]} Qc7 {[%emt 0:01:00]} 16. Rhe1 {[%emt 0:10:03]} Nb6 {[%emt 0:01:36]} 17. f4 {[%emt 0:34:00]} O-O-O {[%emt 0:14:02]} 18. c4 {[%emt 0:18:56]} Kb8 {[%emt 0:14:42]} 19. Qe2 {[%emt 0:01:53]} e4 {[%emt 0:21:24]} 1/2-1/2

[Event "Fagernes Chess GM-Swiss 2024"]
[Site "Fagernes"]
[Date "2024.03.29"]
[Round "7.24"]
[White "Carlsson, Ludvig"]
[Black "Krishnan, Ritvik"]
[Result "0-1"]
[ECO "D38"]
[WhiteElo "2350"]
[BlackElo "2277"]
[Annotator "RC"]
[PlyCount "75"]
[EventDate "2024.03.25"]
[EventType "swiss"]
[EventCountry "NOR"]
[SourceTitle "playchess.com"]
[Source "ChessBase"]
[SourceQuality "1"]
[TimeControl "40/6000+30:2400+30"]

1. Nf3 {[%emt 0:00:01]} d5 {[%emt 0:04:45]} 2. d4 {[%emt 0:01:31]} Nf6 {[%emt 0:00:04]} 3. c4 {[%emt 0:00:17]} e6 {[%emt 0:00:02]} 4. Nc3 {[%emt 0:00:17]} Bb4 {[%emt 0:00:03]} 5. Bg5 {[%emt 0:00:24]} h6 {[%emt 0:00:12]} 6. Bxf6 {[%emt 0:00:16]} Qxf6 {[%emt 0:00:03]} 7. e3 {[%emt 0:00:26]} O-O {[%emt 0:00:04]} 8. Rc1 {[%emt 0:00:11]} dxc4 {[%emt 0:00:29]} 9. Bxc4 {[%emt 0:00:14]} c5 {[%emt 0:00:02]} 10. O-O {[%emt 0:05:56]} cxd4 {[%emt 0:00:14]} 11. Nxd4 {[%emt 0:00:13]} Bd7 {[%emt 0:03:35]} 12. Qb3 {[%emt 0:00:27]} Nc6 {[%emt 0:00:54]} 13. Nxc6 {[%emt 0:00:12]} Bxc3 {[%emt 0:00:06]} 14. Qxc3 {[%emt 0:00:11]} Bxc6 {[%emt 0:00:42]} 15. Qxf6 {[%emt 0:00:12]} gxf6 {[%emt 0:00:01]} 16. Rfd1 {[%emt 0:00:14]} Rfd8 {[%emt 0:00:26]} 17. f3 {[%emt 0:00:10]} Kf8 {[%emt 0:02:34]} 18. e4 {[%emt 0:03:38]} Ke7 {[%emt 0:00:59]} 19. Kf2 {[%emt 0:00:31]} Rxd1 {[%emt 0:03:45]} 20. Rxd1 {[%emt 0:00:10]} Rd8 {[%emt 0:00:08]} 21. Rxd8 {[%emt 0:00:52]} Kxd8 {[%emt 0:00:01]} 22. Kg3 {[%emt 0:01:53]} Ke7 {[%emt 0:00:52]} 23. Kf4 {[%emt 0:09:11]} b6 {[%emt 0:03:03]} 24. a3 {[%emt 0:03:06]} Bb7 {[%emt 0:00:45]} 25. Bb5 {[%emt 0:01:02]} Ba8 {[%emt 0:01:15]} 26. Kg4 {[%emt 0:32:55]} Kf8 {[%emt 0:00:16]} 27. Kh5 {[%emt 0:00:12]} Kg7 {[%emt 0:00:02]} 28. Bd7 {[%emt 0:00:10]} Bb7 {[%emt 0:03:01]} 29. Bb5 {[%emt 0:20:12]} Kh7 {[%emt 0:03:38]} 30. Kg4 {[%emt 0:15:19]} Kg7 {[%emt 0:00:31]} 31. h3 {[%emt 0:02:45]} Kf8 {[%emt 0:02:01]} 32. h4 {[%emt 0:02:41]} Kg7 {[%emt 0:00:48]} 33. Kh5 {[%emt 0:02:20]} Kh7 {[%emt 0:01:23]} 34. Be2 {[%emt 0:06:04]} Kg7 {[%emt 0:01:12]} 35. Bd3 {[%emt 0:00:08]} Bc6 {[%emt 0:00:49]} 36. b3 {[%emt 0:00:09]} Bb7 {[%emt 0:02:32]} 37. Bb5 {[%emt 0:00:16]} Bc8 {[%emt 0:02:18]} 38. b4 {[%emt 0:00:00]} 0-1

[Event "Fagernes Chess GM-Swiss 2024"]
[Site "Fagernes"]
[Date "2024.03.29"]
[Round "7.25"]
[White "Elmi, Saad Abobaker"]
[Black "Brattgjerd, Isak Vinh"]
[Result "1-0"]
[ECO "B11"]
[WhiteElo "2344"]
[BlackElo "2228"]
[Annotator "RC"]
[PlyCount "99"]
[EventDate "2024.03.25"]
[EventType "swiss"]
[EventCountry "NOR"]
[SourceTitle "playchess.com"]
[Source "ChessBase"]
[SourceQuality "1"]
[TimeControl "40/6000+30:2400+30"]

1. e4 {[%emt 0:02:26]} c6 {[%emt 0:01:35]} 2. Nc3 {[%emt 0:00:11]} d5 {[%emt 0:00:09]} 3. Nf3 {[%emt 0:00:11]} dxe4 {[%emt 0:00:06]} 4. Nxe4 {[%emt 0:00:17]} Nf6 {[%emt 0:00:04]} 5. Qe2 {[%emt 0:00:23]} Nxe4 {[%emt 0:00:46]} 6. Qxe4 {[%emt 0:00:11]} Nd7 {[%emt 0:01:05]} 7. d4 {[%emt 0:00:45]} Nf6 {[%emt 0:00:04]} 8. Qf4 {[%emt 0:00:37]} Nd5 {[%emt 0:00:05]} 9. Qd2 {[%emt 0:01:04]} g6 {[%emt 0:00:25]} 10. h3 {[%emt 0:04:02]} Bg7 {[%emt 0:00:18]} 11. Bd3 {[%emt 0:06:35]} O-O {[%emt 0:00:30]} 12. O-O {[%emt 0:00:40]} a5 {[%emt 0:10:52]} 13. c4 {[%emt 0:03:25]} Nb6 {[%emt 0:05:55]} 14. Qe2 {[%emt 0:04:28]} Qc7 {[%emt 0:04:27]} 15. Bg5 {[%emt 0:08:31]} Re8 {[%emt 0:00:09]} 16. Rac1 {[%emt 0:01:08]} c5 {[%emt 0:10:59]} 17. Rfd1 {[%emt 0:35:02]} Nd7 {[%emt 0:16:42]} 18. Bc2 {[%emt 0:08:59]} h6 {[%emt 0:16:46]} 19. Bh4 {[%emt 0:01:34]} Qb6 {[%emt 0:03:05]} 20. Ba4 {[%emt 0:02:41]} cxd4 {[%emt 0:06:15]} 21. c5 {[%emt 0:00:44]} Qc7 {[%emt 0:06:39]} 22. Bg3 {[%emt 0:01:52]} e5 {[%emt 0:00:54]} 23. Nxd4 {[%emt 0:01:25]} Qd8 {[%emt 0:03:55]} 24. Nb5 {[%emt 0:00:49]} Bf8 {[%emt 0:01:39]} 25. Nd6 {[%emt 0:02:12]} Bxd6 {[%emt 0:00:06]} 26. cxd6 {[%emt 0:00:13]} Ra6 {[%emt 0:00:48]} 27. Qc2 {[%emt 0:07:50]} Qf6 {[%emt 0:03:43]} 28. Qc7 {[%emt 0:00:20]} Rd8 {[%emt 0:00:31]} 29. Bb5 {[%emt 0:00:21]} Ra8 {[%emt 0:00:36]} 30. Rc3 {[%emt 0:01:04]} e4 {[%emt 0:02:41]} 31. Re1 {[%emt 0:06:21]} Nf8 {[%emt 0:01:37]} 32. Qe7 {[%emt 0:00:29]} Qg5 {[%emt 0:01:43]} 33. h4 {[%emt 0:00:26]} Qxb5 {[%emt 0:00:08]} 34. Qxd8 {[%emt 0:00:05]} Qd7 {[%emt 0:02:30]} 35. Qf6 {[%emt 0:02:04]} Nh7 {[%emt 0:01:08]} 36. Qe5 {[%emt 0:00:26]} Qe6 {[%emt 0:01:21]} 37. Rxe4 {[%emt 0:00:29]} Nf6 {[%emt 0:00:21]} 38. Qxe6 {[%emt 0:03:05]} Bxe6 {[%emt 0:00:16]} 39. Rd4 {[%emt 0:00:29]} b5 {[%emt 0:01:05]} 40. a4 {[%emt 0:00:52]} b4 {[%emt 0:02:15]} 41. Rc7 {[%emt 0:41:21]} Nd7 {[%emt 0:40:48]} 42. h5 {[%emt 0:01:23]} gxh5 {[%emt 0:00:37]} 43. Bh4 {[%emt 0:00:55]} Kg7 {[%emt 0:01:13]} 44. Re4 {[%emt 0:00:36]} Bf5 {[%emt 0:00:40]} 45. Re7 {[%emt 0:00:28]} Rd8 {[%emt 0:00:52]} 46. Re5 {[%emt 0:01:01]} Nxe5 {[%emt 0:00:55]} 47. Bxd8 {[%emt 0:00:09]} Be6 {[%emt 0:00:33]} 48. Rb7 {[%emt 0:01:13]} Nc6 {[%emt 0:00:16]} 49. Bb6 {[%emt 0:00:31]} Kf6 {[%emt 0:00:37]} 50. d7 {[%emt 0:00:10]} 1-0

[Event "Fagernes Chess GM-Swiss 2024"]
[Site "Fagernes"]
[Date "2024.03.29"]
[Round "7.26"]
[White "Haug, Havard"]
[Black "Avetisyan, Ani"]
[Result "1-0"]
[ECO "B15"]
[WhiteElo "2341"]
[BlackElo "1840"]
[Annotator "RC"]
[PlyCount "73"]
[EventDate "2024.03.25"]
[EventType "swiss"]
[EventCountry "NOR"]
[SourceTitle "playchess.com"]
[Source "ChessBase"]
[SourceQuality "1"]
[TimeControl "40/6000+30:2400+30"]

1. e4 {[%emt 0:04:41]} c6 {[%emt 0:00:25]} 2. d4 {[%emt 0:00:04]} d5 {[%emt 0:00:12]} 3. Nd2 {[%emt 0:00:04]} dxe4 {[%emt 0:00:09]} 4. Nxe4 {[%emt 0:00:04]} Nf6 {[%emt 0:00:02]} 5. Nxf6+ {[%emt 0:00:06]} exf6 {[%emt 0:00:05]} 6. c3 {[%emt 0:00:04]} Bd6 {[%emt 0:00:08]} 7. Bd3 {[%emt 0:00:09]} O-O {[%emt 0:00:20]} 8. Qc2 {[%emt 0:00:03]} Re8+ {[%emt 0:00:06]} 9. Ne2 {[%emt 0:00:04]} h5 {[%emt 0:00:04]} 10. Be3 {[%emt 0:00:05]} Nd7 {[%emt 0:01:33]} 11. c4 {[%emt 0:02:05]} Nf8 {[%emt 0:05:00]} 12. O-O-O {[%emt 0:01:23]} Be6 {[%emt 0:07:56]} 13. a3 {[%emt 0:01:53]} Qd7 {[%emt 0:05:45]} 14. Nc3 {[%emt 0:05:35]} Rac8 {[%emt 0:04:16]} 15. h3 {[%emt 0:03:07]} b5 {[%emt 0:10:38]} 16. c5 {[%emt 0:09:42]} Bb8 {[%emt 0:06:45]} 17. g4 {[%emt 0:02:31]} h4 {[%emt 0:03:46]} 18. g5 {[%emt 0:06:08]} f5 {[%emt 0:17:16]} 19. d5 {[%emt 0:04:08]} cxd5 {[%emt 0:04:12]} 20. Bxb5 {[%emt 0:01:34]} Qb7 {[%emt 0:02:21]} 21. Bxe8 {[%emt 0:02:50]} Rxe8 {[%emt 0:00:28]} 22. Ne2 {[%emt 0:02:05]} Ng6 {[%emt 0:07:17]} 23. Nd4 {[%emt 0:04:47]} f4 {[%emt 0:09:56]} 24. Bd2 {[%emt 0:00:50]} Be5 {[%emt 0:00:40]} 25. Bc3 {[%emt 0:00:45]} Qc7 {[%emt 0:05:08]} 26. Nxe6 {[%emt 0:02:08]} Rxe6 {[%emt 0:02:17]} 27. Rxd5 {[%emt 0:01:07]} Bxc3 {[%emt 0:02:26]} 28. Qxc3 {[%emt 0:09:00]} Ne7 {[%emt 0:01:04]} 29. Rd2 {[%emt 0:02:41]} Re5 {[%emt 0:01:46]} 30. Rd8+ {[%emt 0:02:50]} Kh7 {[%emt 0:01:38]} 31. Rd7 {[%emt 0:00:18]} Qxc5 {[%emt 0:01:36]} 32. Qxc5 {[%emt 0:00:44]} Rxc5+ {[%emt 0:00:06]} 33. Kd2 {[%emt 0:00:16]} Ng6 {[%emt 0:01:01]} 34. Rxa7 {[%emt 0:00:28]} Rxg5 {[%emt 0:00:27]} 35. Rxf7 {[%emt 0:00:15]} Rg2 {[%emt 0:00:25]} 36. Ke2 {[%emt 0:00:14]} Kg8 {[%emt 0:02:02]} 37. Rf5 {[%emt 0:00:12]} 1-0